fUSD/lending_fUSD_20251103
["ID","MTS","AMOUNT","RATE_DAILY","PERIOD"]
[392988690,1762199447997,-220.553926,0.00037026,31]
[392988691,1762199448007,-220.553926,0.00037026,31]
[392988692,1762199448016,-220.553926,0.00037026,31]
[392988693,1762199448026,-220.553926,0.00037026,31]
[392988694,1762199448035,-220.553926,0.00037026,31]
[392988695,1762199448044,-220.553926,0.00037026,31]
[392988696,1762199448055,-220.553926,0.00037026,31]
[392988697,1762199448068,-220.553926,0.00037026,31]
[392988698,1762199448077,-220.553926,0.00037026,31]
[392988699,1762199448086,-220.553926,0.00037026,31]
[392988700,1762199448096,-220.553926,0.00037026,31]
[392988701,1762199448105,-220.553926,0.00037026,31]
[392988702,1762199448114,-220.553926,0.00037026,31]
[392988703,1762199448123,-220.553926,0.00037026,31]
[392988704,1762199448132,-220.553926,0.00037026,31]
[392988705,1762199448144,-220.55393,0.00037026,31]
[392988706,1762199448153,-151.0,0.00037026,31]
[392988707,1762199448163,-151.0,0.00037026,31]
[392988708,1762199448172,-151.0,0.00037026,31]
[392988709,1762199448181,-223.517104,0.00037026,31]
[392988710,1762199448190,-151.0,0.00037026,31]
[392988711,1762199448199,-151.0,0.00037026,31]
[392988712,1762199448208,-171.616614,0.00037026,31]
[392988713,1762199448217,-151.0,0.00037026,31]
[392988714,1762199448226,-151.0,0.00037026,31]
[392988715,1762199448236,-155.707145,0.00037026,31]
[392988716,1762199448245,-151.0,0.00037026,31]
[392988717,1762199448254,-151.0,0.00037026,31]
[392988718,1762199448263,-151.0,0.00037026,31]
[392988719,1762199448272,-151.0,0.00037026,31]
[392988720,1762199448281,-151.0,0.00037026,31]
[392988721,1762199448290,-151.0,0.00037026,31]
[392988722,1762199448300,-151.0,0.00037026,31]
[392988723,1762199448309,-231.895333,0.00037026,31]
[392988724,1762199448318,-152.281979,0.00037026,31]
[392988725,1762199448327,-151.0,0.00037026,31]
[392988726,1762199448336,-151.0,0.00037026,31]
[392988727,1762199448345,-151.0,0.00037026,31]
[392988728,1762199448354,-151.0,0.00037026,31]
[392988729,1762199448363,-152.452258,0.00037026,31]
[392988730,1762199448372,-159.037364,0.00037026,31]
[392988731,1762199448381,-151.0,0.00037026,31]
[392988732,1762199448391,-154.067118,0.00037026,31]
[392988733,1762199448401,-151.0,0.00037026,31]
[392988734,1762199448412,-151.0,0.00037026,31]
[392988735,1762199448421,-542.952073,0.00037026,31]
[392988736,1762199448431,-542.952073,0.00037026,31]
[392988737,1762199448440,-542.952073,0.00037026,31]
[392988738,1762199448450,-542.952073,0.00037026,31]
[392988739,1762199448460,-542.952073,0.00037026,31]
[392988740,1762199448469,-542.952073,0.00037026,31]
[392988741,1762199448479,-542.952073,0.00037026,31]
[392988742,1762199448488,-542.952073,0.00037026,31]
[392988743,1762199448497,-542.952073,0.00037026,31]
[392988744,1762199448507,-542.952073,0.00037026,31]
[392988745,1762199448516,-542.952073,0.00037026,31]
[392988746,1762199448525,-542.952073,0.00037026,31]
[392988747,1762199448534,-542.952073,0.00037026,31]
[392988748,1762199448543,-542.952073,0.00037026,31]
[392988749,1762199448553,-151.0,0.00037026,31]
[392988750,1762199448562,-542.952073,0.00037026,31]
[392988751,1762199448573,-151.0,0.00037026,31]
[392988752,1762199448582,-542.952073,0.00037026,31]
[392988753,1762199448591,-151.0,0.00037026,31]
[392988754,1762199448600,-542.952073,0.00037026,31]
[392988755,1762199448610,-151.0,0.00037026,31]
[392988756,1762199448619,-542.952073,0.00037026,31]
[392988757,1762199448628,-151.0,0.00037026,31]
[392988758,1762199448637,-151.0,0.00037026,31]
[392988759,1762199448647,-542.952073,0.00037026,31]
[392988760,1762199448656,-151.0,0.00037026,31]
[392988761,1762199448665,-151.0,0.00037026,31]
[392988762,1762199448674,-542.952069,0.00037026,31]
[392988763,1762199448684,-151.0,0.00037026,31]
[392988764,1762199448692,-151.0,0.00037026,31]
[392988765,1762199448702,-151.0,0.00037026,31]
[392988766,1762199448711,-190.904624,0.00037026,31]
[392988767,1762199448720,-556.528831,0.00037026,31]
[392988768,1762199448729,-556.528831,0.00037026,31]
[392988769,1762199448737,-556.528831,0.00037026,31]
[392988770,1762199448746,-556.528831,0.00037026,31]
[392988771,1762199448755,-556.528831,0.00037026,31]
[392988772,1762199448764,-556.528831,0.00037026,31]
[392988773,1762199448773,-556.528831,0.00037026,31]
[392988774,1762199448782,-556.528831,0.00037026,31]
[392988775,1762199448791,-416.883281,0.00037026,31]
[392988776,1762199448800,-556.528831,0.00037026,31]
[392988777,1762199448809,-416.883281,0.00037026,31]
[392988778,1762199448818,-556.528831,0.00037026,31]
[392988779,1762199448827,-416.883281,0.00037026,31]
[392988780,1762199448836,-556.528831,0.00037026,31]
[392988781,1762199448845,-416.883281,0.00037026,31]
[392988782,1762199448855,-556.528831,0.00037026,31]
[392988783,1762199448864,-416.883281,0.00037026,31]
[392988784,1762199448873,-556.528831,0.00037026,31]
[392988785,1762199448882,-416.883281,0.00037026,31]
[392988786,1762199448891,-556.528831,0.00037026,31]
[392988787,1762199448900,-416.883281,0.00037026,31]
[392988788,1762199448910,-556.528831,0.00037026,31]
[392988789,1762199448919,-416.883281,0.00037026,31]
[392988790,1762199448928,-556.528831,0.00037026,31]
[392988791,1762199448937,-416.883281,0.00037026,31]
[392988792,1762199448946,-556.528831,0.00037026,31]
[392988793,1762199448954,-416.883281,0.00037026,31]
[392988794,1762199448964,-556.528831,0.00037026,31]
[392988795,1762199448973,-416.883281,0.00037026,31]
[392988796,1762199448981,-556.528831,0.00037026,31]
[392988797,1762199448991,-416.883281,0.00037026,31]
[392988798,1762199449000,-556.528827,0.00037026,31]
[392988799,1762199449009,-416.883281,0.00037026,31]
[392988800,1762199449018,-416.883281,0.00037026,31]
[392988801,1762199449027,-151.0,0.00037026,31]
[392988802,1762199449036,-416.883281,0.00037026,31]
[392988803,1762199449045,-151.0,0.00037026,31]
[392988804,1762199449056,-416.883281,0.00037026,31]
[392988805,1762199449071,-220.775732,0.00037026,31]
[392988806,1762199449080,-416.883281,0.00037026,31]
[392988807,1762199449090,-416.883281,0.00037026,31]
[392988808,1762199449099,-416.883281,0.00037026,31]
[392988809,1762199449108,-416.883286,0.00037026,31]
[392988810,1762199449118,-151.0,0.00037026,31]
[392988811,1762199449127,-151.0,0.00037026,31]
[392988812,1762199449138,-151.0,0.00037026,31]
[392988813,1762199449148,-151.0,0.00037026,31]
[392988814,1762199449157,-182.839494,0.00037026,31]
[392988815,1762199449166,-151.0,0.00037026,31]
[392988816,1762199449175,-151.0,0.00037026,31]
[392988817,1762199449184,-151.0,0.00037026,31]
[392988818,1762199449193,-151.0,0.00037026,31]
[392988819,1762199449202,-151.0,0.00037026,31]
[392988820,1762199449212,-151.0,0.00037026,31]
[392988821,1762199449221,-151.0,0.00037026,31]
[392988822,1762199449230,-151.0,0.00037026,31]
[392988823,1762199449239,-151.0,0.00037026,31]
[392988824,1762199449248,-151.0,0.00037026,31]
[392988825,1762199449257,-151.0,0.00037026,31]
[392988826,1762199449267,-151.0,0.00037026,31]
[392988827,1762199449275,-151.0,0.00037026,31]
[392988828,1762199449285,-894.979452,0.00037026,30]
[392988829,1762199449294,-151.0,0.00037026,31]
[392988830,1762199449303,-894.979452,0.00037026,30]
[392988831,1762199449313,-894.979452,0.00037026,30]
[392988832,1762199449322,-151.0,0.00037026,31]
[392988833,1762199449330,-894.979452,0.00037026,30]
[392988834,1762199449340,-151.0,0.00037026,31]
[392988835,1762199449350,-213.674947,0.00037026,31]
[392988836,1762199449359,-894.979452,0.00037026,30]
[392988837,1762199449369,-894.979452,0.00037026,30]
[392988838,1762199449378,-894.979452,0.00037026,30]
[392988839,1762199449387,-894.979452,0.00037026,30]
[392988840,1762199449397,-894.979452,0.00037026,30]
[392988841,1762199449405,-894.979452,0.00037026,30]
[392988842,1762199449415,-894.979452,0.00037026,30]
[392988843,1762199449424,-894.979452,0.00037026,30]
[392988844,1762199449433,-894.979452,0.00037026,30]
[392988845,1762199449442,-894.979452,0.00037026,30]
[392988846,1762199449451,-894.979452,0.00037026,30]
[392988847,1762199449460,-894.979452,0.00037026,30]
[392988848,1762199449469,-894.979452,0.00037026,30]
[392988849,1762199449478,-894.979452,0.00037026,30]
[392988850,1762199449487,-894.979452,0.00037026,30]
[392988851,1762199449498,-894.979449,0.00037026,30]
[392988852,1762199449507,-151.0,0.00037026,31]
[392988853,1762199449517,-151.0,0.00037026,31]
[392988854,1762199449526,-151.0,0.00037026,31]
[392988855,1762199449536,-151.0,0.00037026,31]
[392988856,1762199449546,-151.0,0.00037026,31]
[392988857,1762199449684,-151.0,0.00037026,31]
[392988858,1762199449708,-151.0,0.00037026,31]
[392988859,1762199449719,-151.0,0.00037026,31]
[392988860,1762199449728,-256.696297,0.00037026,31]
[392988861,1762199449737,-151.0,0.00037026,31]
[392988862,1762199449747,-151.0,0.00037026,31]
[392988863,1762199449756,-151.0,0.00037026,31]
[392988864,1762199449765,-151.0,0.00037026,31]
[392988865,1762199449774,-151.0,0.00037026,31]
[392988866,1762199449783,-151.0,0.00037026,31]
[392988867,1762199449793,-235.22591,0.00037026,31]
[392988868,1762199449802,-151.0,0.00037026,31]
[392988869,1762199449812,-151.0,0.00037026,31]
[392988870,1762199449821,-151.0,0.00037026,31]
[392988871,1762199449830,-151.0,0.00037026,31]
[392988872,1762199449839,-151.0,0.00037026,31]
[392988873,1762199449848,-151.0,0.00037026,31]
[392988874,1762199449857,-151.0,0.00037026,31]
[392988875,1762199449867,-151.0,0.00037026,31]
[392988876,1762199449875,-151.0,0.00037026,31]
[392988877,1762199449885,-151.0,0.00037026,31]
[392988878,1762199449894,-151.0,0.00037026,31]
[392988879,1762199449905,-151.0,0.00037026,31]
[392988880,1762199449914,-151.0,0.00037026,31]
[392988881,1762199449924,-151.0,0.00037026,31]
[392988882,1762199449933,-151.0,0.00037026,31]
[392988883,1762199449942,-151.0,0.00037026,31]
[392988884,1762199449951,-151.0,0.00037026,31]
[392988885,1762199449961,-151.0,0.00037026,31]
[392988886,1762199449973,-151.0,0.00037026,31]
[392988887,1762199449983,-151.0,0.00037026,31]
[392988888,1762199449992,-151.0,0.00037026,31]
[392988889,1762199450002,-151.0,0.00037026,31]
[392988890,1762199450012,-178.086736,0.00037026,31]
[392988891,1762199450020,-151.0,0.00037026,31]
[392988892,1762199450030,-215.970601,0.00037026,31]
[392988893,1762199450039,-151.0,0.00037026,31]
[392988894,1762199450048,-206.006682,0.00037026,31]
[392988895,1762199450058,-151.0,0.00037026,31]
[392988896,1762199450071,-151.0,0.00037026,31]
[392988897,1762199450080,-239.431653,0.00037026,31]
[392988898,1762199450089,-188.386434,0.00037026,31]
[392988899,1762199450099,-239.431653,0.00037026,31]
[392988900,1762199450109,-239.431653,0.00037026,31]
[392988901,1762199450119,-239.431653,0.00037026,31]
[392988902,1762199450128,-239.431653,0.00037026,31]
[392988903,1762199450139,-239.431653,0.00037026,31]
[392988904,1762199450148,-239.431653,0.00037026,31]
[392988905,1762199450158,-239.431653,0.00037026,31]
[392988906,1762199450167,-239.431653,0.00037026,31]
[392988907,1762199450176,-239.431653,0.00037026,31]
[392988908,1762199450185,-239.431653,0.00037026,31]
[392988909,1762199450194,-151.0,0.00037026,31]
[392988910,1762199450203,-239.431653,0.00037026,31]
[392988911,1762199450213,-151.0,0.00037026,31]
[392988912,1762199450222,-239.431653,0.00037026,31]
[392988913,1762199450231,-151.0,0.00037026,31]
[392988914,1762199450240,-239.431653,0.00037026,31]
[392988915,1762199450250,-151.0,0.00037026,31]
[392988916,1762199450259,-239.431653,0.00037026,31]
[392988917,1762199450269,-151.0,0.00037026,31]
[392988918,1762199450279,-239.431653,0.00037026,31]
[392988919,1762199450288,-151.0,0.00037026,31]
[392988920,1762199450297,-239.431653,0.00037026,31]
[392988921,1762199450307,-151.0,0.00037026,31]
[392988922,1762199450316,-239.431653,0.00037026,31]
[392988923,1762199450325,-220.794528,0.00037026,31]
[392988924,1762199450335,-151.0,0.00037026,31]
[392988925,1762199450345,-239.431653,0.00037026,31]
[392988926,1762199450354,-151.0,0.00037026,31]
[392988927,1762199450363,-239.431658,0.00037026,31]
[392988928,1762199450372,-188.494499,0.00037026,31]
[392988929,1762199450382,-151.0,0.00037026,31]
[392988930,1762199450391,-151.0,0.00037026,31]
[392988931,1762199450402,-151.0,0.00037026,31]
[392988932,1762199450411,-151.0,0.00037026,31]
[392988933,1762199450420,-151.0,0.00037026,31]
[392988934,1762199450429,-151.0,0.00037026,31]
[392988935,1762199450440,-151.0,0.00037026,31]
[392988936,1762199450448,-151.0,0.00037026,31]
[392988937,1762199450458,-151.0,0.00037026,31]
[392988938,1762199450467,-151.0,0.00037026,31]
[392988939,1762199450476,-151.0,0.00037026,31]
[392988940,1762199450485,-151.0,0.00037026,31]
[392988941,1762199450494,-202.032545,0.00037026,31]
[392988942,1762199450503,-151.0,0.00037026,31]
[392988943,1762199450512,-163.632111,0.00037026,31]
[392988944,1762199450521,-412048.60827424,0.00037026,7]
[392988945,1762199451399,-199.0,0.00029314,11]
[392988946,1762199451408,-199.0,0.00029588,12]
[392988947,1762199451417,-614.85083877,0.00037026,7]
[392988948,1762199451429,-622.08775657,0.00037026,7]
[392988949,1762199452332,-199.0,0.00029862,13]
[392988950,1762199452342,-199.0,0.00030136,14]
[392988951,1762199452351,-199.0,0.0003041,15]
[392988952,1762199452360,-199.0,0.00030684,16]
[392988953,1762199452370,-199.0,0.00030958,17]
[392988954,1762199452379,-199.0,0.00031232,18]
[392988955,1762199452388,-203.21464941,0.00037026,7]
[392988956,1762199452678,-682.46572285,0.00037026,7]
[392988957,1762199452689,-3547.5,0.00037026,7]
[392988958,1762199452729,-959566.76318082,0.00037026,7]
[392988959,1762199453544,-151.0,0.00037026,30]
[392988960,1762199453554,-151.0,0.00037026,30]
[392988961,1762199453564,-151.0,0.00037026,30]
[392988962,1762199453574,-82.321,0.00037026,30]
[392988963,1762199454920,-1000.0,0.00036913,7]
[392988964,1762199454930,-190.9031732,0.00036944,2]
[392988965,1762199454945,-958.43501829,0.00036944,2]
[392988966,1762199454953,-0.06998571,0.00037021,7]
[392988967,1762199454964,-999.93001429,0.00037021,7]
[392988968,1762199454974,-68.679,0.00037026,30]
[392988969,1762199454983,-151.0,0.00037026,30]
[392988970,1762199454992,-151.0,0.00037026,30]
[392988971,1762199455001,-151.0,0.00037026,30]
[392988972,1762199455010,-151.0,0.00037026,30]
[392988973,1762199455019,-151.0,0.00037026,30]
[392988974,1762199455028,-151.0,0.00037026,31]
[392988975,1762199455037,-151.0,0.00037026,30]
[392988976,1762199455047,-151.0,0.00037026,31]
[392988977,1762199455061,-151.0,0.00037026,31]
[392988978,1762199455070,-151.0,0.00037026,30]
[392988979,1762199455080,-151.0,0.00037026,31]
[392988980,1762199455089,-151.0,0.00037026,30]
[392988981,1762199455101,-278.52782,0.00037026,31]
[392988982,1762199455110,-151.0,0.00037026,30]
[392988983,1762199455119,-151.0,0.00037026,30]
[392988984,1762199455128,-151.0,0.00037026,30]
[392988985,1762199455137,-151.0,0.00037026,30]
[392988986,1762199455148,-151.0,0.00037026,30]
[392988987,1762199455157,-151.0,0.00037026,31]
[392988988,1762199455166,-253.868238,0.00037026,30]
[392988989,1762199455178,-151.0,0.00037026,31]
[392988990,1762199455187,-4292.14639691,0.00037026,7]
[392988991,1762199455228,-169.137384,0.00037026,31]
[392988992,1762199455238,-900.862616,0.00037026,7]
[392988993,1762199467036,193.0,0.00024462,120]
[392988995,1762200350144,151.0,0.00014986,2]
[392988998,1762200383114,1000.0,0.00013699,2]
[392988999,1762200507845,220.0,0.00014315,2]
[392989003,1762200631924,-1000.0,0.00020187,2]
[392989004,1762200631933,-246.87113548,0.00021918,4]
[392989005,1762200632006,-253.12886452,0.00021918,4]
[392989007,1762200632016,-500.0,0.00021918,4]
[392989009,1762200632025,-500.0,0.00021918,4]
[392989011,1762200632034,-500.0,0.00021918,4]
[392989013,1762200632044,-500.0,0.00021918,4]
[392989015,1762200632052,-500.0,0.00021918,4]
[392989017,1762200632062,-500.0,0.00021918,4]
[392989019,1762200632071,-500.0,0.00021918,4]
[392989021,1762200632080,-289.0,0.00022138,2]
[392989023,1762200632090,-500.0,0.00022138,2]
[392989025,1762200632099,-500.0,0.00022138,2]
[392989027,1762200632108,-500.0,0.00022138,2]
[392989029,1762200632118,-367.24746068,0.00022138,2]
[392989041,1762200632209,-132.75253932,0.00022138,2]
[392989043,1762200632219,-500.0,0.00022138,2]
[392989044,1762200632228,-250.0,0.00022206,2]
[392989047,1762200632239,-250.0,0.0002411,2]
[392989049,1762200632248,-500.0,0.00024932,2]
[392989051,1762200632258,-500.0,0.00025178,7]
[392989053,1762200632267,-700.0,0.00025312,7]
[392989055,1762200632276,-700.0,0.00025343,7]
[392989056,1762200632285,-500.0,0.00025366,7]
[392989059,1762200632295,-322.50142428,0.0002539,7]
[392989076,1762200634980,151.0,0.00014986,2]
[392989289,1762200637615,-177.49857572,0.0002539,7]
[392989291,1762200637624,-700.0,0.00025436,7]
[392989293,1762200637634,-700.0,0.00025592,7]
[392989295,1762200637643,-500.0,0.00025762,7]
[392989297,1762200637652,-500.0,0.00025915,7]
[392989299,1762200637661,-500.0,0.00025943,7]
[392989301,1762200637670,-500.0,0.00025972,7]
[392989303,1762200637679,-500.0,0.00025975,7]
[392989305,1762200637688,-700.0,0.00025991,7]
[392989307,1762200637697,-500.0,0.00025997,7]
[392989309,1762200637706,-700.0,0.00026132,7]
[392989311,1762200637716,-500.0,0.00026304,7]
[392989313,1762200637725,-664.64802279,0.00026394,4]
[392989315,1762200637734,-150.84704414,0.00026397,7]
[392989317,1762200637743,-700.0,0.00026443,7]
[392989319,1762200637753,-315.68676636,0.00026474,7]
[392989321,1762200637763,-562.19119301,0.00026491,4]
[392989326,1762200637803,-102.45682979,0.00026491,4]
[392989328,1762200637812,-526.22772082,0.00026494,2]
[392989330,1762200637822,-1436.14069939,0.00026494,2]
[392989334,1762200637853,-341.17930061,0.00026494,2]
[392989336,1762200637863,-1043.61,0.00026494,2]
[392989338,1762200637872,-492.58082826,0.00026494,2]
[392989340,1762200637883,-507.40917174,0.00026494,2]
[392989342,1762200637892,-150.99,0.00026494,2]
[392989344,1762200637901,-125.21457666,0.00026573,2]
[392989349,1762200637933,-374.78542334,0.00026573,2]
[392989351,1762200637942,-500.0,0.00026573,2]
[392989353,1762200637952,-500.0,0.00026573,2]
[392989355,1762200637961,-527.35537018,0.00026573,2]
[392989356,1762200637970,-500.0,0.00026573,2]
[392989357,1762200637979,-500.0,0.00026573,2]
[392989358,1762200637988,-500.0,0.00026573,2]
[392989359,1762200637998,-151.0,0.00026575,2]
[392989360,1762200638007,-151.0,0.00026575,2]
[392989361,1762200638017,-36.85498044,0.00026575,2]
[392989362,1762200638029,-114.14501956,0.00026575,2]
[392989363,1762200638038,-151.0,0.00026575,2]
[392989364,1762200638047,-19.91632815,0.00026575,2]
[392989371,1762200639985,-131.08367185,0.00026575,2]
[392989372,1762200639994,-123.13232815,0.00026575,2]
[392989373,1762200640111,-27.86767185,0.00026575,2]
[392989374,1762200640120,-151.0,0.00026575,2]
[392989375,1762200640130,-151.0,0.00026575,2]
[392989376,1762200640139,-151.0,0.00026575,2]
[392989377,1762200640155,-151.0,0.00026575,2]
[392989379,1762200640164,-151.0,0.00026575,2]
[392989381,1762200640173,-151.0,0.00026575,2]
[392989382,1762200640182,-151.0,0.00026575,2]
[392989384,1762200640191,-473.14,0.00026576,2]
[392989386,1762200640201,-16599.57963915,0.00026591,2]
[392989388,1762200640210,-1000.0,0.00026676,2]
[392989389,1762200640219,-473.14,0.0002685,2]
[392989390,1762200640230,-700.0,0.00026866,7]
[392989391,1762200640239,-700.0,0.0002692,7]
[392989392,1762200640248,-500.0,0.00026935,7]
[392989393,1762200640257,-500.0,0.00027069,7]
[392989394,1762200640266,-500.0,0.00027121,2]
[392989395,1762200640275,-473.14,0.00027124,2]
[392989396,1762200640284,-500.0,0.00027171,7]
[392989397,1762200640293,-450.88935476,0.000273,2]
[392989398,1762200640302,-473.14,0.00027398,14]
[392989399,1762200640311,-1752.16,0.00027419,2]
[392989400,1762200640321,-2751.0,0.00027451,2]
[392989401,1762200640330,-1000.0,0.00027508,2]
[392989402,1762200640339,-5844.94,0.00027611,2]
[392989403,1762200640349,-473.18,0.00027672,14]
[392989404,1762200640358,-320.3,0.00027691,2]
[392989405,1762200640371,-150.0,0.00027737,2]
[392989406,1762200640575,-401.54,0.00027793,2]
[392989407,1762200640586,-500.0,0.00027905,7]
[392989408,1762200640596,-200.0,0.00027968,2]
[392989409,1762200640605,-500.0,0.00027988,7]
[392989410,1762200640614,-500.0,0.00028023,7]
[392989411,1762200640623,-500.0,0.00028181,7]
[392989412,1762200640632,-500.0,0.00028218,120]
[392989413,1762200640641,-500.0,0.00028218,30]
[392989414,1762200640650,-500.0,0.00028218,120]
[392989415,1762200640659,-500.0,0.00028218,120]
[392989416,1762200640668,-500.0,0.00028218,120]
[392989417,1762200640677,-163.15,0.00028288,2]
[392989418,1762200640686,-500.0,0.00028333,7]
[392989419,1762200640696,-500.0,0.00028397,7]
[392989420,1762200640705,-500.0,0.00028415,7]
[392989421,1762200640715,-500.0,0.00028471,7]
[392989422,1762200640724,-166.66,0.00028502,30]
[392989423,1762200640733,-166.66,0.00028519,2]
[392989424,1762200640743,-500.0,0.00028581,7]
[392989425,1762200640752,-500.0,0.00028651,7]
[392989426,1762200640762,-500.0,0.00028662,7]
[392989427,1762200640772,-500.0,0.0002871,7]
[392989428,1762200640782,-500.0,0.00028769,7]
[392989429,1762200640791,-700.0,0.00028774,7]
[392989430,1762200640800,-700.0,0.00028789,7]
[392989431,1762200640809,-500.0,0.00028809,7]
[392989432,1762200640819,-500.0,0.00028905,7]
[392989433,1762200640828,-500.0,0.00028953,7]
[392989434,1762200640837,-700.0,0.00028954,7]
[392989435,1762200640846,-253.8417114,0.00028989,7]
[392989436,1762200640857,-700.0,0.00029089,7]
[392989437,1762200640867,-166.66,0.00029102,30]
[392989438,1762200640876,-500.0,0.00029162,7]
[392989439,1762200640886,-700.0,0.00029233,7]
[392989440,1762200640899,-500.0,0.00029335,7]
[392989441,1762200640908,-700.0,0.00029423,7]
[392989442,1762200640917,-500.0,0.00029443,7]
[392989443,1762200640927,-166.66,0.00029461,2]
[392989444,1762200640936,-500.0,0.00029528,7]
[392989445,1762200640945,-700.0,0.00029579,7]
[392989446,1762200640954,-166.66,0.00029702,30]
[392989447,1762200640963,-500.0,0.00029782,7]
[392989448,1762200640972,-500.0,0.00029901,7]
[392989449,1762200640983,-500.0,0.00029997,7]
[392989450,1762200640992,-500.0,0.00030047,2]
[392989451,1762200641001,-427.24264921,0.00030047,2]
[392989452,1762200641009,-500.0,0.00030048,7]
[392989453,1762200641018,-377.24559049,0.00030137,2]
[392989454,1762200641027,-600.0,0.0003015,7]
[392989455,1762200641036,-700.0,0.0003019,7]
[392989456,1762200641045,-166.66,0.00030302,30]
[392989457,1762200641054,-500.0,0.00030326,2]
[392989458,1762200641063,-500.0,0.00030358,7]
[392989459,1762200641072,-2919.746,0.00030379,26]
[392989460,1762200641082,-157.066,0.00030379,26]
[392989461,1762200641091,-166.66,0.00030402,2]
[392989462,1762200641100,-500.0,0.0003041,7]
[392989463,1762200641110,-700.0,0.00030432,7]
[392989464,1762200641119,-700.0,0.0003046,7]
[392989465,1762200641128,-4905.0,0.00030477,5]
[392989466,1762200641137,-500.0,0.00030477,7]
[392989467,1762200641146,-500.0,0.00030499,7]
[392989468,1762200641155,-700.0,0.00030536,7]
[392989469,1762200641164,-500.0,0.00030553,7]
[392989470,1762200641173,-700.0,0.00030565,7]
[392989471,1762200641183,-593.42,0.00030631,2]
[392989472,1762200641193,-500.0,0.00030636,7]
[392989473,1762200641208,-1328.06,0.0003068,2]
[392989474,1762200641218,-911.0,0.00030869,2]
[392989475,1762200641227,-6468.0,0.00030869,2]
[392989476,1762200641237,-2140.0,0.00030869,2]
[392989477,1762200641246,-6652.0,0.00030869,2]
[392989478,1762200641255,-559.0,0.00030869,2]
[392989479,1762200641264,-700.0,0.0003088,7]
[392989480,1762200641273,-500.0,0.0003089,7]
[392989481,1762200641283,-166.66,0.00030902,30]
[392989482,1762200641292,-1000.0,0.00030946,2]
[392989483,1762200641301,-298.574218,0.00030958,30]
[392989484,1762200641310,-365.24922691,0.00030958,120]
[392989485,1762200641320,-700.0,0.00030982,7]
[392989486,1762200641329,-500.0,0.00031037,7]
[392989487,1762200641338,-500.0,0.00031084,7]
[392989488,1762200641347,-500.0,0.0003121,7]
[392989489,1762200641357,-700.0,0.00031232,7]
[392989490,1762200641368,-500.0,0.00031328,7]
[392989491,1762200641383,-500.0,0.0003133,7]
[392989492,1762200641392,-166.66,0.00031344,2]
[392989493,1762200641401,-500.0,0.00031377,7]
[392989494,1762200641411,-500.0,0.0003141,7]
[392989495,1762200641422,-500.0,0.0003142,7]
[392989496,1762200641431,-500.0,0.00031494,7]
[392989497,1762200641441,-166.66,0.00031502,30]
[392989498,1762200641450,-778.84454455,0.00031589,7]
[392989499,1762200641459,-500.0,0.00031776,7]
[392989500,1762200641468,-1211.22906114,0.00031793,7]
[392989501,1762200641478,-722.29013252,0.00032061,7]
[392989502,1762200641487,-166.66,0.00032285,2]
[392989503,1762200641496,-573.0,0.00032471,2]